[Event "FIDE Grand Swiss 2023"]
[Site "Villa Marina, Douglas, Isle of Man"]
[Date "2023.11.03"]
[Round "9.37"]
[White "Grandelius, Nils"]
[Black "Mishra, Abhimanyu"]
[Result "1/2-1/2"]
[WhiteElo "2689"]
[BlackElo "2592"]
[EventDate "2023.10.25"]
[ECO "C01"]
[PlyCount "60"]
[BlackClock "00:17:08"]
[BlackFideId "30920019"]
[TimeControl "40/100 + 20/50 + 15 + 30s/move"]
[WhiteClock "00:03:39"]
[WhiteFideId "1710400"]

1.e4 {[%clk 01:40:35][%emt 00:00:24]} 1...e6 {[%clk 01:40:56][%emt 00:00:06]} 
2.d4 {[%clk 01:39:47][%emt 00:01:17]} 2...d5 {[%clk 01:41:20][%emt 00:00:06]} 
3.Nc3 {[%clk 01:40:09][%emt 00:00:07]} 3...Bb4 {[%clk 01:41:36][%emt 00:00:15]} 
4.exd5 {[%clk 01:39:56][%emt 00:00:43]} 4...exd5 {[%clk 01:41:48][%emt
00:00:18]} 5.Bd3 {[%clk 01:40:17][%emt 00:00:08]} 5...Nf6 {[%clk 01:42:02][%emt
00:00:17]} 6.a3 {[%clk 01:40:00][%emt 00:00:46]} 6...Bxc3+ {[%clk 01:39:16][%emt
00:03:17]} 7.bxc3 {[%clk 01:39:43][%emt 00:00:47]} 7...O-O {[%clk 01:39:42][%emt
00:00:04]} 8.Ne2 {[%clk 01:39:49][%emt 00:00:20]} 8...Bg4 {[%clk 01:39:36][%emt
00:00:40]} 9.f3 {[%clk 01:38:21][%emt 00:01:58]} 9...Bh5 {[%clk 01:39:54][%emt
00:00:13]} 10.h4 {[%clk 01:32:12][%emt 00:06:38]} 10...Bg6 {[%clk 01:40:01][%emt
00:00:24]} 11.Kf2 {[%clk 01:32:08][%emt 00:00:33]} 11...c5 {[%clk 01:28:26][%emt
00:12:05]} 12.Ng3 {[%clk 01:19:02][%emt 00:13:35]} 12...c4 {[%clk 01:18:12][%emt
00:10:45]} 13.Bf5 {[%clk 01:09:03][%emt 00:10:28]} 13...Nh5 {[%clk
01:16:43][%emt 00:02:00]} 14.Nxh5 {[%clk 01:05:03][%emt 00:04:30]} 14...Bxh5 
{[%clk 01:12:48][%emt 00:04:25]} 15.Rb1 {[%clk 01:03:08][%emt 00:02:25]} 
15...b6 {[%clk 01:08:14][%emt 00:05:05]} 16.Qd2 {[%clk 00:49:12][%emt 00:14:25]} 
16...Nc6 {[%clk 00:55:31][%emt 00:13:14]} 17.Qf4 {[%clk 00:41:07][%emt
00:08:34]} 17...Ne7 {[%clk 00:47:49][%emt 00:08:12]} 18.Bh3 {[%clk
00:40:37][%emt 00:01:00]} 18...Bg6 {[%clk 00:45:01][%emt 00:03:18]} 19.Rb2 
{[%clk 00:40:12][%emt 00:00:55]} 19...h6 {[%clk 00:39:20][%emt 00:06:11]} 
20.Re1 {[%clk 00:33:24][%emt 00:07:18]} 20...Nc6 {[%clk 00:33:19][%emt
00:06:31]} 21.Bd2 {[%clk 00:27:18][%emt 00:06:36]} 21...f5 {[%clk 00:28:53][%emt
00:04:56]} 22.Rbb1 {[%clk 00:23:36][%emt 00:04:12]} 22...Rf6 {[%clk
00:25:53][%emt 00:03:30]} 23.Rbd1 {[%clk 00:21:04][%emt 00:03:02]} 23...Qd7 
{[%clk 00:23:08][%emt 00:03:15]} 24.Qg3 {[%clk 00:15:09][%emt 00:06:24]} 
24...Bf7 {[%clk 00:20:17][%emt 00:03:22]} 25.Re2 {[%clk 00:14:29][%emt
00:01:11]} 25...Re8 {[%clk 00:18:25][%emt 00:02:21]} 26.Rde1 {[%clk
00:14:44][%emt 00:00:15]} 26...Rxe2+ {[%clk 00:18:29][%emt 00:00:26]} 27.Rxe2 
{[%clk 00:15:12] [%emt 00:00:02]} 27...Rg6 {[%clk 00:16:48] [%emt 00:02:11]} 
28.Qf4 {[%clk 00:14:40] [%emt 00:01:01]} 28...Rf6 {[%clk 00:16:39] [%emt
00:00:39]} 29.Qg3 {[%clk 00:15:12][%emt 00:00:02]} 29...Rg6 {[%clk
00:16:48][%emt 00:02:11]} 30.Qf4 {[%clk 00:14:40][%emt 00:01:01]} 30...Rf6 
{[%clk 00:16:39][%emt 00:00:39]} 1/2-1/2

[Event "FIDE Grand Swiss 2023"]
[Site "Villa Marina, Douglas, Isle of Man"]
[Date "2023.11.03"]
[Round "9.38"]
[White "Amin, Bassem"]
[Black "Rodrigue-Lemieux, Shawn"]
[Result "1/2-1/2"]
[WhiteElo "2680"]
[BlackElo "2488"]
[EventDate "2023.10.25"]
[ECO "B13"]
[PlyCount "60"]
[BlackClock "00:12:46"]
[BlackFideId "2620049"]
[TimeControl "40/100 + 20/50 + 15 + 30s/move"]
[WhiteClock "00:00:02"]
[WhiteFideId "10601457"]

1.e4 {[%clk 01:40:07][%emt 00:00:51]} 1...c6 {[%clk 01:40:54][%emt 00:00:07]} 
2.d4 {[%clk 01:39:42][%emt 00:00:56]} 2...d5 {[%clk 01:41:18][%emt 00:00:06]} 
3.exd5 {[%clk 01:40:02][%emt 00:00:10]} 3...cxd5 {[%clk 01:41:41][%emt
00:00:06]} 4.Bd3 {[%clk 01:40:24][%emt 00:00:08]} 4...Nc6 {[%clk 01:42:04][%emt
00:00:07]} 5.c3 {[%clk 01:40:50][%emt 00:00:05]} 5...Nf6 {[%clk 01:41:42][%emt
00:00:50]} 6.Bf4 {[%clk 01:41:07][%emt 00:00:14]} 6...Bg4 {[%clk 01:41:56][%emt
00:00:17]} 7.Qb3 {[%clk 01:41:34][%emt 00:00:03]} 7...Qd7 {[%clk 01:42:09][%emt
00:00:16]} 8.Nd2 {[%clk 01:41:57][%emt 00:00:08]} 8...e6 {[%clk 01:42:32][%emt
00:00:07]} 9.Ngf3 {[%clk 01:42:23][%emt 00:00:04]} 9...Bd6 {[%clk 01:42:44][%emt
00:00:17]} 10.Bxd6 {[%clk 01:42:47][%emt 00:00:07]} 10...Qxd6 {[%clk
01:43:08][%emt 00:00:06]} 11.O-O {[%clk 01:43:10][%emt 00:00:06]} 11...O-O 
{[%clk 01:43:27][%emt 00:00:11]} 12.Rae1 {[%clk 01:43:32][%emt 00:00:08]} 
12...Ne7 {[%clk 01:36:51][%emt 00:07:06]} 13.Ne5 {[%clk 01:36:45][%emt
00:07:17]} 13...Bf5 {[%clk 01:37:12][%emt 00:00:09]} 14.Bxf5 {[%clk
01:30:41][%emt 00:06:35]} 14...Nxf5 {[%clk 01:37:34][%emt 00:00:08]} 15.g4 
{[%clk 01:28:20][%emt 00:02:51]} 15...Ne7 {[%clk 01:33:39][%emt 00:04:24]} 
16.Re3 {[%clk 01:26:38][%emt 00:02:13]} 16...b5 {[%clk 01:16:10][%emt 00:17:59]} 
17.a3 {[%clk 00:53:36][%emt 00:33:31]} 17...Rab8 {[%clk 01:09:49][%emt
00:06:51]} 18.Qd1 {[%clk 00:43:39][%emt 00:10:28]} 18...h6 {[%clk 00:35:45][%emt
00:34:33]} 19.b4 {[%clk 00:28:50]} 19...Ne4 {[%clk 00:26:10][%emt 00:10:05]} 
20.Nb3 {[%clk 00:22:05][%emt 00:07:16]} 20...Qc7 {[%clk 00:20:03][%emt
00:06:37]} 21.Nc5 {[%clk 00:16:42][%emt 00:05:52]} 21...Nxc5 {[%clk
00:20:28][%emt 00:00:06]} 22.bxc5 {[%clk 00:17:07][%emt 00:00:05]} 22...a5 
{[%clk 00:20:53][%emt 00:00:04]} 23.Qd2 {[%clk 00:15:24][%emt 00:02:13]} 
23...Nc6 {[%clk 00:18:31][%emt 00:02:52]} 24.f4 {[%clk 00:15:48][%emt 00:00:07]} 
24...Nxe5 {[%clk 00:18:02][%emt 00:00:58]} 25.Rxe5 {[%clk 00:15:56][%emt
00:00:23]} 25...Qe7 {[%clk 00:14:00][%emt 00:04:32]} 26.f5 {[%clk 00:10:34][%emt
00:05:51]} 26...Qh4 {[%clk 00:14:23][%emt 00:00:07]} 27.fxe6 {[%clk
00:02:38][%emt 00:08:27]} 27...fxe6 {[%clk 00:14:05][%emt 00:00:48]} 28.Rxf8+ 
{[%clk 00:02:22][%emt 00:00:46]} 28...Rxf8 {[%clk 00:14:33][%emt 00:00:02]} 
29.Qe2 {[%clk 00:02:34][%emt 00:00:17]} 29...Qh3 {[%clk 00:13:30][%emt
00:01:32]} 30.Rxe6 {[%clk 00:00:52][%emt 00:02:14]} 30...Qxc3 {[%clk 00:12:46]
[%emt 00:01:13]} 1/2-1/2

[Event "FIDE Grand Swiss 2023"]
[Site "Villa Marina, Douglas, Isle of Man"]
[Date "2023.11.03"]
[Round "9.39"]
[White "Akobian, Varuzhan"]
[Black "Abasov, Nijat"]
[Result "1/2-1/2"]
[WhiteElo "2582"]
[BlackElo "2679"]
[EventDate "2023.10.25"]
[ECO "E12"]
[PlyCount "78"]
[BlackClock "00:03:13"]
[BlackFideId "13402960"]
[TimeControl "40/100 + 20/50 + 15 + 30s/move"]
[WhiteClock "00:01:32"]
[WhiteFideId "13300580"]

1.d4 {[%clk 01:40:54][%emt 00:00:04]} 1...Nf6 {[%clk 01:40:56][%emt 00:00:05]} 
2.c4 {[%clk 01:41:11][%emt 00:00:13]} 2...e6 {[%clk 01:41:18][%emt 00:00:07]} 
3.Nf3 {[%clk 01:40:41][%emt 00:01:01]} 3...b6 {[%clk 01:41:41][%emt 00:00:08]} 
4.a3 {[%clk 01:35:45][%emt 00:05:26]} 4...Bb7 {[%clk 01:41:55][%emt 00:00:15]} 
5.Nc3 {[%clk 01:36:07][%emt 00:00:08]} 5...d5 {[%clk 01:42:19][%emt 00:00:06]} 
6.Bg5 {[%clk 01:35:22][%emt 00:01:14]} 6...Be7 {[%clk 01:42:39][%emt 00:00:11]} 
7.e3 {[%clk 01:35:08][%emt 00:00:44]} 7...O-O {[%clk 01:43:01][%emt 00:00:08]} 
8.cxd5 {[%clk 01:35:24][%emt 00:00:15]} 8...Nxd5 {[%clk 01:43:19][%emt
00:00:11]} 9.Bxe7 {[%clk 01:35:43][%emt 00:00:11]} 9...Qxe7 {[%clk
01:43:31][%emt 00:00:17]} 10.Rc1 {[%clk 01:35:09][%emt 00:01:05]} 10...Nf6 
{[%clk 01:40:12][%emt 00:03:49]} 11.Be2 {[%clk 01:31:39][%emt 00:03:59]} 
11...Nbd7 {[%clk 01:40:07][%emt 00:00:35]} 12.O-O {[%clk 01:32:00][%emt
00:00:10]} 12...c5 {[%clk 01:38:01][%emt 00:02:36]} 13.dxc5 {[%clk
01:28:07][%emt 00:04:22]} 13...Nxc5 {[%clk 01:38:09][%emt 00:00:22]} 14.b4 
{[%clk 01:28:21][%emt 00:00:17]} 14...Rfd8 {[%clk 01:36:35][%emt 00:02:03]} 
15.Qc2 {[%clk 01:25:58][%emt 00:02:54]} 15...Nce4 {[%clk 01:35:04][%emt
00:02:00]} 16.Nxe4 {[%clk 01:18:59][%emt 00:07:30]} 16...Nxe4 {[%clk
01:29:38][%emt 00:05:56]} 17.Rfd1 {[%clk 01:09:32][%emt 00:09:57]} 17...Rxd1+ 
{[%clk 01:26:40][%emt 00:03:27]} 18.Bxd1 {[%clk 01:00:35][%emt 00:09:28]} 
18...Nd6 {[%clk 01:01:00][%emt 00:26:10]} 19.Be2 {[%clk 00:50:39][%emt
00:10:27]} 19...Rc8 {[%clk 00:58:02][%emt 00:03:26]} 20.Qb2 {[%clk
00:48:58][%emt 00:02:12]} 20...Rxc1+ {[%clk 00:57:42][%emt 00:00:50]} 21.Qxc1 
{[%clk 00:49:17][%emt 00:00:12]} 21...g6 {[%clk 00:54:06][%emt 00:04:04]} 22.h3 
{[%clk 00:43:26][%emt 00:06:22]} 22...e5 {[%clk 00:47:49][%emt 00:06:46]} 
23.Qc3 {[%clk 00:41:15][%emt 00:02:42]} 23...f6 {[%clk 00:46:40][%emt 00:01:39]} 
24.Nd2 {[%clk 00:41:23][%emt 00:00:21]} 24...Kg7 {[%clk 00:45:43][%emt
00:01:26]} 25.Bf3 {[%clk 00:38:20][%emt 00:03:34]} 25...Bxf3 {[%clk
00:45:16][%emt 00:00:58]} 26.Nxf3 {[%clk 00:32:21][%emt 00:06:29]} 26...Qd7 
{[%clk 00:45:10][%emt 00:00:35]} 27.Qc2 {[%clk 00:31:38][%emt 00:01:14]} 
27...b5 {[%clk 00:39:46][%emt 00:05:54]} 28.Nd2 {[%clk 00:27:36][%emt 00:04:33]} 
28...Nc4 {[%clk 00:31:26][%emt 00:08:49]} 29.Nxc4 {[%clk 00:20:17][%emt
00:07:49]} 29...Qc6 {[%clk 00:31:38][%emt 00:00:18]} 30.f3 {[%clk 00:10:28][%emt
00:10:20]} 30...bxc4 {[%clk 00:30:12][%emt 00:01:55]} 31.Qc3 {[%clk
00:10:33][%emt 00:00:25]} 31...e4 {[%clk 00:28:47][%emt 00:01:55]} 32.f4 {[%clk
00:01:07][%emt 00:09:56]} 32...Kf7 {[%clk 00:15:40][%emt 00:13:38]} 33.Kf2 
{[%clk 00:00:38][%emt 00:00:59]} 33...Ke6 {[%clk 00:15:25][%emt 00:00:43]} 
34.a4 {[%clk 00:00:34][%emt 00:00:35]} 34...a6 {[%clk 00:15:50][%emt 00:00:05]} 
35.g4 {[%clk 00:00:37][%emt 00:00:28]} 35...h6 {[%clk 00:14:32][%emt 00:01:47]} 
36.h4 {[%clk 00:01:04][%emt 00:00:03]} 36...Qd5 {[%clk 00:10:08][%emt 00:04:54]} 
37.g5 {[%clk 00:01:19][%emt 00:00:15]} 37...hxg5 {[%clk 00:06:31][%emt
00:04:07]} 38.hxg5 {[%clk 00:01:48][%emt 00:00:01]} 38...fxg5 {[%clk
00:05:08][%emt 00:01:54]} 39.fxg5 {[%clk 00:02:10][%emt 00:00:08]} 39...Qd3 
{[%clk 00:03:13][%emt 00:02:23]} 1/2-1/2

[Event "FIDE Grand Swiss 2023"]
[Site "Villa Marina, Douglas, Isle of Man"]
[Date "2023.11.03"]
[Round "9.40"]
[White "Shevchenko, Kirill"]
[Black "Vokhidov, Shamsiddin"]
[Result "1-0"]
[WhiteElo "2671"]
[BlackElo "2578"]
[EventDate "2023.10.25"]
[ECO "E01"]
[PlyCount "159"]
[BlackClock "00:01:07"]
[BlackFideId "14204223"]
[TimeControl "40/100 + 20/50 + 15 + 30s/move"]
[WhiteClock "00:02:28"]
[WhiteFideId "14129574"]

1.d4 {[%clk 01:40:53][%emt 00:00:06]} 1...Nf6 {[%clk 01:40:55][%emt 00:00:05]} 
2.c4 {[%clk 01:41:16][%emt 00:00:06]} 2...e6 {[%clk 01:41:22][%emt 00:00:04]} 
3.g3 {[%clk 01:41:41][%emt 00:00:06]} 3...d5 {[%clk 01:40:05][%emt 00:01:47]} 
4.Bg2 {[%clk 01:42:02][%emt 00:00:08]} 4...Be7 {[%clk 01:39:34][%emt 00:01:00]} 
5.Nf3 {[%clk 01:42:17][%emt 00:00:16]} 5...O-O {[%clk 01:39:59][%emt 00:00:05]} 
6.Nc3 {[%clk 01:39:06][%emt 00:03:41]} 6...c6 {[%clk 01:38:48][%emt 00:01:41]} 
7.O-O {[%clk 01:37:25][%emt 00:02:11]} 7...a5 {[%clk 01:37:51][%emt 00:01:27]} 
8.Re1 {[%clk 01:23:14][%emt 00:14:40]} 8...Nbd7 {[%clk 01:33:20][%emt 00:05:02]} 
9.Nd2 {[%clk 01:13:39][%emt 00:10:05]} 9...Re8 {[%clk 01:26:53][%emt 00:06:57]} 
10.b3 {[%clk 00:59:24][%emt 00:14:45]} 10...e5 {[%clk 01:09:20][%emt 00:18:03]} 
11.dxe5 {[%clk 00:56:25][%emt 00:03:29]} 11...Nxe5 {[%clk 01:09:45][%emt
00:00:05]} 12.cxd5 {[%clk 00:56:39][%emt 00:00:16]} 12...cxd5 {[%clk
01:08:48][%emt 00:01:27]} 13.Nf3 {[%clk 00:43:51][%emt 00:13:18]} 13...Bb4 
{[%clk 01:02:39][%emt 00:06:39]} 14.Bd2 {[%clk 00:42:46][%emt 00:01:34]} 
14...Nxf3+ {[%clk 00:48:09][%emt 00:15:01]} 15.Bxf3 {[%clk 00:40:22][%emt
00:02:54]} 15...Ne4 {[%clk 00:43:58][%emt 00:04:41]} 16.Nxe4 {[%clk
00:34:35][%emt 00:06:18]} 16...dxe4 {[%clk 00:41:10][%emt 00:03:17]} 17.Bxb4 
{[%clk 00:34:59][%emt 00:00:06]} 17...exf3 {[%clk 00:36:54][%emt 00:04:46]} 
18.Qxd8 {[%clk 00:34:36][%emt 00:00:53]} 18...Rxd8 {[%clk 00:37:19][%emt
00:00:04]} 19.Be7 {[%clk 00:34:56][%emt 00:00:10]} 19...Rd2 {[%clk
00:36:24][%emt 00:01:26]} 20.exf3 {[%clk 00:35:17][%emt 00:00:09]} 20...Be6 
{[%clk 00:36:47][%emt 00:00:06]} 21.Kg2 {[%clk 00:33:46][%emt 00:02:01]} 
21...h6 {[%clk 00:34:49][%emt 00:02:28]} 22.Red1 {[%clk 00:32:28][%emt
00:01:48]} 22...Rxd1 {[%clk 00:34:04][%emt 00:01:17]} 23.Rxd1 {[%clk
00:32:56][%emt 00:00:01]} 23...a4 {[%clk 00:34:24][%emt 00:00:10]} 24.Rd3 
{[%clk 00:33:12][%emt 00:00:14]} 24...axb3 {[%clk 00:30:09][%emt 00:04:44]} 
25.axb3 {[%clk 00:33:41][%emt 00:00:02]} 25...b5 {[%clk 00:30:35][%emt
00:00:04]} 26.g4 {[%clk 00:33:07][%emt 00:01:04]} 26...b4 {[%clk 00:29:56][%emt
00:01:09]} 27.f4 {[%clk 00:31:52][%emt 00:01:45]} 27...Re8 {[%clk 00:24:26][%emt
00:06:00]} 28.Bxb4 {[%clk 00:26:58][%emt 00:05:24]} 28...Rb8 {[%clk
00:24:40][%emt 00:00:16]} 29.f5 {[%clk 00:26:53][%emt 00:00:35]} 29...Bxf5 
{[%clk 00:24:49][%emt 00:00:21]} 30.gxf5 {[%clk 00:25:35][%emt 00:01:48]} 
30...Rxb4 {[%clk 00:25:18][%emt 00:00:02]} 31.Kf3 {[%clk 00:25:36][%emt
00:00:28]} 31...Kh7 {[%clk 00:24:01][%emt 00:01:46]} 32.Ke2 {[%clk
00:24:28][%emt 00:01:37]} 32...g5 {[%clk 00:18:33][%emt 00:06:00]} 33.fxg6+ 
{[%clk 00:19:26][%emt 00:05:33]} 33...Kxg6 {[%clk 00:18:58][%emt 00:00:04]} 
34.Rf3 {[%clk 00:14:19]} 34...Kg5 {[%clk 00:19:05][%emt 00:00:24]} 35.Kd2 
{[%clk 00:07:56][%emt 00:06:54]} 35...f5 {[%clk 00:18:27][%emt 00:01:08]} 
36.Kc3 {[%clk 00:07:22][%emt 00:01:03]} 36...Rb8 {[%clk 00:18:50][%emt
00:00:06]} 37.b4 {[%clk 00:06:33][%emt 00:01:20]} 37...f4 {[%clk 00:18:47][%emt
00:00:33]} 38.Rd3 {[%clk 00:06:21][%emt 00:00:41]} 38...Kg4 {[%clk
00:10:10][%emt 00:09:08]} 39.h3+ {[%clk 00:03:51][%emt 00:03:00]} 39...Kh4 
{[%clk 00:01:58][%emt 00:08:42]} 40.Rf3 {[%clk 00:00:41][%emt 00:03:40]} 
40...h5 {[%clk 00:00:58][%emt 00:01:30]} 41.Kb3 {[%clk 00:41:53] [%emt
00:09:17]} 41...Kg5 {[%clk 00:51:07] [%emt 00:00:21]} 42.Rd3 {[%clk
00:32:59][%emt 00:09:25]} 42...Kf5 {[%clk 00:48:23][%emt 00:03:13]} 43.Rd4 
{[%clk 00:29:15][%emt 00:04:14]} 43...Kg5 {[%clk 00:40:30][%emt 00:08:24]} 
44.Rd5+ {[%clk 00:22:20][%emt 00:07:24]} 44...Kh4 {[%clk 00:40:31][%emt
00:00:29]} 45.Rd3 {[%clk 00:22:42][%emt 00:00:08]} 45...Kg5 {[%clk 00:31:34]
[%emt 00:09:27]} 46.Kc3 {[%clk 00:22:44][%emt 00:00:28]} 46...Kf5 {[%clk
00:25:51][%emt 00:06:14]} 47.Rd4 {[%clk 00:12:12][%emt 00:11:02]} 47...Kg5 
{[%clk 00:23:36][%emt 00:02:45]} 48.Rd5+ {[%clk 00:09:44][%emt 00:02:58]} 
48...Kh4 {[%clk 00:23:55][%emt 00:00:11]} 49.Rd3 {[%clk 00:10:13]} 49...Kg5 
{[%clk 00:23:03][%emt 00:01:22]} 50.Kc4 {[%clk 00:07:44][%emt 00:02:59]} 
50...Rc8+ {[%clk 00:21:56][%emt 00:01:37]} 51.Kb3 {[%clk 00:07:59][%emt
00:00:15]} 51...Rb8 {[%clk 00:31:34][%emt 00:09:27]} 52.Rc3 {[%clk
00:08:23][%emt 00:00:07]} 52...Kh4 {[%clk 00:18:46][%emt 00:03:54]} 53.Rf3 
{[%clk 00:41:53][%emt 00:09:17]} 53...Kg5 {[%clk 00:51:07][%emt 00:00:21]} 
54.Kc4 {[%clk 00:07:00][%emt 00:00:07]} 54...Rc8+ {[%clk 00:19:03][%emt
00:00:17]} 55.Kd5 {[%clk 00:06:47] [%emt 00:00:42]} 55...Rb8 {[%clk 00:17:04]
[%emt 00:02:29]} 56.Kc5 {[%clk 00:03:27] [%emt 00:03:50]} 56...Rc8+ {[%clk
00:17:32] [%emt 00:00:02]} 57.Kd5 {[%clk 00:06:47][%emt 00:00:42]} 57...Rb8 
{[%clk 00:17:04][%emt 00:02:29]} 58.Kc5 {[%clk 00:03:27][%emt 00:03:50]} 
58...Rc8+ {[%clk 00:17:32][%emt 00:00:02]} 59.Kd6 {[%clk 00:01:08][%emt
00:00:01]} 59...Rb8 {[%clk 00:15:23][%emt 00:03:11]} 60.Rb3 {[%clk
00:01:33][%emt 00:00:04]} 60...f3 {[%clk 00:15:45][%emt 00:00:08]} 61.Kc5 
{[%clk 00:08:52][%emt 00:08:10]} 61...Rf8 {[%clk 00:24:40][%emt 00:06:37]} 
62.Kd5 {[%clk 00:08:45][%emt 00:00:36]} 62...Kh4 {[%clk 00:23:12][%emt
00:01:58]} 63.Ke4 {[%clk 00:09:06][%emt 00:00:09]} 63...Rb8 {[%clk
00:23:34][%emt 00:00:09]} 64.Kxf3 {[%clk 00:07:43][%emt 00:01:53]} 64...Kxh3 
{[%clk 00:23:52][%emt 00:00:12]} 65.b5 {[%clk 00:06:56][%emt 00:01:16]} 
65...Rf8+ {[%clk 00:18:42][%emt 00:05:41]} 66.Ke2+ {[%clk 00:05:40][%emt
00:01:45]} 66...Kg2 {[%clk 00:19:05][%emt 00:00:07]} 67.Rg3+ {[%clk
00:06:09][%emt 00:00:01]} 67...Kh2 {[%clk 00:19:31][%emt 00:00:05]} 68.Kf1 
{[%clk 00:04:41][%emt 00:01:57]} 68...Rb8 {[%clk 00:09:01][%emt 00:11:01]} 
69.Rb3 {[%clk 00:05:07][%emt 00:00:04]} 69...Rb6 {[%clk 00:09:20][%emt
00:00:11]} 70.Rb4 {[%clk 00:04:23][%emt 00:01:14]} 70...Kh3 {[%clk
00:09:48][%emt 00:00:02]} 71.Kg1 {[%clk 00:03:19][%emt 00:01:34]} 71...Rg6+ 
{[%clk 00:10:14][%emt 00:00:04]} 72.Kh1 {[%clk 00:03:41][%emt 00:00:07]} 
72...Rb6 {[%clk 00:10:02][%emt 00:00:43]} 73.Rb3+ {[%clk 00:03:42][%emt
00:00:29]} 73...Kg4 {[%clk 00:10:24][%emt 00:00:07]} 74.Kg2 {[%clk
00:04:11][%emt 00:00:01]} 74...Kh4 {[%clk 00:04:18][%emt 00:06:37]} 75.Rb4+ 
{[%clk 00:03:43][%emt 00:00:58]} 75...Kg5 {[%clk 00:04:46][%emt 00:00:01]} 
76.Kg3 {[%clk 00:03:34][%emt 00:00:39]} 76...Kf5 {[%clk 00:04:58][%emt
00:00:19]} 77.Kh4 {[%clk 00:03:03][%emt 00:01:01]} 77...Kg6 {[%clk
00:05:16][%emt 00:00:12]} 78.f4 {[%clk 00:02:27][%emt 00:01:05]} 78...Rb7 
{[%clk 00:01:15][%emt 00:04:31]} 79.b6 {[%clk 00:02:03] [%emt 00:00:55]} 
79...Kf5 {[%clk 00:01:40] [%emt 00:00:05]} 80.Kg3 {[%clk 00:02:28] [%emt
00:00:04]} 1-0

[Event "FIDE Grand Swiss 2023"]
[Site "Villa Marina, Douglas, Isle of Man"]
[Date "2023.11.03"]
[Round "9.41"]
[White "Parligras, Mircea-Emilian"]
[Black "Svane, Rasmus"]
[Result "1/2-1/2"]
[WhiteElo "2561"]
[BlackElo "2646"]
[EventDate "2023.10.25"]
[ECO "E12"]
[PlyCount "64"]
[BlackClock "00:05:56"]
[BlackFideId "4657101"]
[TimeControl "40/100 + 20/50 + 15 + 30s/move"]
[WhiteClock "00:13:38"]
[WhiteFideId "1204297"]

1.d4 {[%clk 01:40:56][%emt 00:00:03]} 1...Nf6 {[%clk 01:40:50][%emt 00:00:10]} 
2.c4 {[%clk 01:41:14][%emt 00:00:12]} 2...e6 {[%clk 01:41:12][%emt 00:00:08]} 
3.Nf3 {[%clk 01:41:32][%emt 00:00:12]} 3...b6 {[%clk 01:41:33][%emt 00:00:09]} 
4.a3 {[%clk 01:41:29][%emt 00:00:33]} 4...Bb7 {[%clk 01:41:44][%emt 00:00:19]} 
5.Bf4 {[%clk 01:41:20][%emt 00:00:38]} 5...c5 {[%clk 01:41:53][%emt 00:00:22]} 
6.Nc3 {[%clk 01:41:15][%emt 00:00:35]} 6...cxd4 {[%clk 01:41:21][%emt 00:01:02]} 
7.Qxd4 {[%clk 01:41:33][%emt 00:00:11]} 7...Nc6 {[%clk 01:41:20][%emt 00:00:32]} 
8.Qd3 {[%clk 01:41:54][%emt 00:00:09]} 8...Nh5 {[%clk 01:41:16][%emt 00:00:34]} 
9.Bg5 {[%clk 01:39:17][%emt 00:03:06]} 9...Be7 {[%clk 01:41:40][%emt 00:00:07]} 
10.Bxe7 {[%clk 01:39:33][%emt 00:00:14]} 10...Qxe7 {[%clk 01:39:07][%emt
00:03:02]} 11.Nb5 {[%clk 01:36:45][%emt 00:03:19]} 11...O-O {[%clk
01:39:21][%emt 00:00:16]} 12.Nd6 {[%clk 01:37:03][%emt 00:00:12]} 12...Nd8 
{[%clk 01:35:22][%emt 00:04:29]} 13.e3 {[%clk 01:27:38][%emt 00:09:55]} 
13...Nf6 {[%clk 01:24:17][%emt 00:11:35]} 14.Be2 {[%clk 01:24:23][%emt
00:03:44]} 14...Bc6 {[%clk 01:22:17][%emt 00:02:31]} 15.O-O {[%clk
01:21:59][%emt 00:02:53]} 15...Nb7 {[%clk 01:22:31][%emt 00:00:17]} 16.Nxb7 
{[%clk 01:19:58][%emt 00:02:31]} 16...Bxb7 {[%clk 01:22:56][%emt 00:00:05]} 
17.Rfd1 {[%clk 01:19:28][%emt 00:01:00]} 17...Rfd8 {[%clk 01:17:53][%emt
00:05:33]} 18.Rac1 {[%clk 01:11:22][%emt 00:08:37]} 18...Rac8 {[%clk
01:17:52][%emt 00:00:30]} 19.Nd4 {[%clk 01:02:43][%emt 00:09:09]} 19...a6 
{[%clk 01:07:57][%emt 00:10:25]} 20.Bf3 {[%clk 00:58:43][%emt 00:04:29]} 
20...Bxf3 {[%clk 01:02:37][%emt 00:05:51]} 21.Nxf3 {[%clk 00:59:08][%emt
00:00:05]} 21...d6 {[%clk 00:53:09][%emt 00:09:59]} 22.e4 {[%clk 00:54:08][%emt
00:05:29]} 22...Qc7 {[%clk 00:42:01][%emt 00:11:38]} 23.Qe3 {[%clk
00:51:56][%emt 00:02:42]} 23...Ng4 {[%clk 00:29:53][%emt 00:12:38]} 24.Qg5 
{[%clk 00:34:04][%emt 00:18:22]} 24...Ne5 {[%clk 00:30:15][%emt 00:00:08]} 
25.Nxe5 {[%clk 00:31:06][%emt 00:03:29]} 25...dxe5 {[%clk 00:30:39][%emt
00:00:05]} 26.Qe3 {[%clk 00:26:18][%emt 00:05:17]} 26...Qxc4 {[%clk
00:22:40][%emt 00:08:30]} 27.Qxb6 {[%clk 00:26:17][%emt 00:00:31]} 27...Rd2 
{[%clk 00:17:45][%emt 00:05:25]} 28.Ra1 {[%clk 00:23:34][%emt 00:03:13]} 
28...Rd4 {[%clk 00:14:03][%emt 00:04:11]} 29.b3 {[%clk 00:20:22][%emt 00:03:43]} 
29...Qc3 {[%clk 00:10:41][%emt 00:03:52]} 30.Qxa6 {[%clk 00:20:02][%emt
00:00:50]} 30...Rcd8 {[%clk 00:10:34][%emt 00:00:36]} 31.Rdb1 {[%clk
00:14:39][%emt 00:05:54]} 31...Rxe4 {[%clk 00:06:22][%emt 00:04:42]} 32.b4 
{[%clk 00:14:48][%emt 00:00:22]} 32...Red4 {[%clk 00:05:56][%emt 00:00:56]} 1/2-1/2